[Event "Late-Titled-Tuesday-Blitz-October-17-2023"]
[Site "Chess.com"]
[Date "2023.10.17"]
[Round "2"]
[White "Cristi_Coca"]
[Black "Russian_berezka"]
[Result "0-1"]
[WhiteElo "2345"]
[BlackElo "2688"]
[TimeControl "180+1"]
[EndTime "14:18:54 PDT"]
[Termination "Russian_berezka won by resignation"]

1. e4 {[%clk 0:03:00.9]} 1... g6 {[%clk 0:02:58.6]} 2. d4 {[%clk 0:03:00.7]}
2... Bg7 {[%clk 0:02:59.1]} 3. Nc3 {[%clk 0:03:01.4]} 3... d5 {[%clk 0:02:59.3]}
4. exd5 {[%clk 0:02:59.6]} 4... Nf6 {[%clk 0:02:57.2]} 5. Bc4 {[%clk 0:02:58.6]}
5... c6 {[%clk 0:02:46.6]} 6. dxc6 {[%clk 0:02:54.4]} 6... Nxc6 {[%clk
0:02:47.5]} 7. Be3 {[%clk 0:02:50.2]} 7... O-O {[%clk 0:02:47.3]} 8. h3 {[%clk
0:02:46.5]} 8... a6 {[%clk 0:02:47.2]} 9. a4 {[%clk 0:02:42]} 9... Bf5 {[%clk
0:02:45.9]} 10. Nf3 {[%clk 0:02:40.9]} 10... Rc8 {[%clk 0:02:44]} 11. Bb3 {[%clk
0:02:39.7]} 11... Na5 {[%clk 0:02:42.3]} 12. O-O {[%clk 0:02:34.1]} 12... Nxb3
{[%clk 0:02:35.1]} 13. cxb3 {[%clk 0:02:35]} 13... Nd5 {[%clk 0:02:34.6]} 14.
Rc1 {[%clk 0:02:32.6]} 14... Nb4 {[%clk 0:02:30.7]} 15. g4 {[%clk 0:02:23]}
15... Be6 {[%clk 0:02:14]} 16. Re1 {[%clk 0:02:17.5]} 16... Qa5 {[%clk
0:02:01.4]} 17. Ng5 {[%clk 0:02:00.5]} 17... Bd5 {[%clk 0:01:54.9]} 18. Nxd5
{[%clk 0:01:51.5]} 18... Nxd5 {[%clk 0:01:54.9]} 19. Ne4 {[%clk 0:01:52]} 19...
Nxe3 {[%clk 0:01:30.3]} 20. fxe3 {[%clk 0:01:52.9]} 20... e5 {[%clk 0:01:22.4]}
21. d5 {[%clk 0:01:46.7]} 21... Rxc1 {[%clk 0:01:20.7]} 22. Qxc1 {[%clk
0:01:45]} 22... Qxd5 {[%clk 0:01:21.3]} 23. Qc4 {[%clk 0:01:43.9]} 23... Qd7
{[%clk 0:01:12.7]} 24. Rc1 {[%clk 0:01:36.3]} 24... b5 {[%clk 0:01:09]} 25. axb5
{[%clk 0:01:24.4]} 25... axb5 {[%clk 0:01:09.9]} 26. Qe2 {[%clk 0:01:23]} 26...
Qd5 {[%clk 0:01:03.1]} 27. Nc5 {[%clk 0:01:12.1]} 27... Rd8 {[%clk 0:00:59]} 28.
b4 {[%clk 0:01:07.4]} 28... Bh6 {[%clk 0:00:54]} 29. Rf1 {[%clk 0:01:01.8]}
29... Qd2 {[%clk 0:00:50.3]} 30. Qf3 {[%clk 0:00:35.3]} 30... Qxe3+ {[%clk
0:00:44.3]} 31. Kh1 {[%clk 0:00:31.7]} 31... Qxf3+ {[%clk 0:00:40.6]} 32. Rxf3
{[%clk 0:00:31.6]} 32... Rd2 {[%clk 0:00:32.2]} 33. Ne4 {[%clk 0:00:24.5]} 33...
Rxb2 {[%clk 0:00:29.8]} 34. g5 {[%clk 0:00:24.1]} 34... Bf8 {[%clk 0:00:26.7]}
35. Nf6+ {[%clk 0:00:22.4]} 35... Kh8 {[%clk 0:00:27]} 36. Nd7 {[%clk
0:00:20.5]} 36... Bxb4 {[%clk 0:00:25.6]} 37. Nxe5 {[%clk 0:00:19.5]} 37... Bc3
{[%clk 0:00:21.1]} 38. Nxf7+ {[%clk 0:00:17.8]} 38... Kg7 {[%clk 0:00:21.2]} 39.
Nh6 {[%clk 0:00:15.4]} 39... Rb1+ {[%clk 0:00:21.1]} 40. Kg2 {[%clk 0:00:15.2]}
40... Rb2+ {[%clk 0:00:21.7]} 41. Kh1 {[%clk 0:00:15.2]} 41... Bb4 {[%clk
0:00:12.7]} 42. Rf7+ {[%clk 0:00:13.7]} 42... Kh8 {[%clk 0:00:13.2]} 43. Rb7
{[%clk 0:00:10.6]} 43... Bf8 {[%clk 0:00:09.6]} 44. Rb8 {[%clk 0:00:08.9]} 44...
Rf2 {[%clk 0:00:09]} 45. Kg1 {[%clk 0:00:07.5]} 45... Rf4 {[%clk 0:00:08.3]} 46.
Ng4 {[%clk 0:00:05]} 46... Kg7 {[%clk 0:00:08]} 47. Nf6 {[%clk 0:00:05.2]} 47...
Bc5+ {[%clk 0:00:08.2]} 48. Kg2 {[%clk 0:00:05.1]} 48... Rf2+ {[%clk 0:00:06.6]}
49. Kg3 {[%clk 0:00:05.4]} 49... Bd6+ {[%clk 0:00:07]} 50. Kxf2 {[%clk
0:00:06.1]} 50... Bxb8 {[%clk 0:00:07.9]} 51. Nd5 {[%clk 0:00:06.5]} 51... Kf7
{[%clk 0:00:06.5]} 52. Ke3 {[%clk 0:00:06.6]} 52... Ke6 {[%clk 0:00:06.8]} 53.
Nf6 {[%clk 0:00:07.2]} 53... Kf5 {[%clk 0:00:06.4]} 54. Nxh7 {[%clk 0:00:07.3]}
54... Bf4+ {[%clk 0:00:06.6]} 55. Kf3 {[%clk 0:00:07]} 55... Bxg5 {[%clk
0:00:06.6]} 56. Nf8 {[%clk 0:00:06.9]} 56... Be7 {[%clk 0:00:05.1]} 57. Nd7
{[%clk 0:00:06.8]} 57... b4 {[%clk 0:00:05.6]} 58. Ke3 {[%clk 0:00:06.1]} 58...
Kg5 {[%clk 0:00:05.2]} 59. Kd3 {[%clk 0:00:05.5]} 59... Kh4 {[%clk 0:00:05.6]}
60. Ne5 {[%clk 0:00:05.7]} 60... g5 {[%clk 0:00:05.2]} 61. Nc6 {[%clk
0:00:05.4]} 61... Bf6 {[%clk 0:00:04.9]} 62. Kc4 {[%clk 0:00:04.6]} 62... Kxh3
{[%clk 0:00:05.1]} 63. Kxb4 {[%clk 0:00:04.7]} 63... g4 {[%clk 0:00:05.7]} 64.
Kc4 {[%clk 0:00:04]} 64... g3 {[%clk 0:00:06.2]} 65. Nd4 {[%clk 0:00:03.8]}
65... Bxd4 {[%clk 0:00:06.2]} 66. Kxd4 {[%clk 0:00:04.3]} 66... g2 {[%clk
0:00:07.1]} 0-1

[Event "Late-Titled-Tuesday-Blitz-October-17-2023"]
[Site "Chess.com"]
[Date "2023.10.17"]
[Round "2"]
[White "FMOlexandrProhorov"]
[Black "Defend1r"]
[Result "1/2-1/2"]
[WhiteElo "2305"]
[BlackElo "2489"]
[TimeControl "180+1"]
[EndTime "14:18:54 PDT"]
[Termination "Game drawn by stalemate"]

1. e4 {[%clk 0:02:54.5]} 1... c5 {[%clk 0:02:59.3]} 2. c3 {[%clk 0:02:53.9]}
2... d5 {[%clk 0:02:56.2]} 3. exd5 {[%clk 0:02:53.3]} 3... Qxd5 {[%clk
0:02:56.3]} 4. d4 {[%clk 0:02:53.8]} 4... Nc6 {[%clk 0:02:53.7]} 5. Nf3 {[%clk
0:02:53.7]} 5... cxd4 {[%clk 0:02:54.2]} 6. cxd4 {[%clk 0:02:53.7]} 6... e5
{[%clk 0:02:54.6]} 7. Nc3 {[%clk 0:02:52.4]} 7... Bb4 {[%clk 0:02:54.3]} 8. Bd2
{[%clk 0:02:51.5]} 8... Bxc3 {[%clk 0:02:54.7]} 9. Bxc3 {[%clk 0:02:51.5]} 9...
e4 {[%clk 0:02:55.3]} 10. Ne5 {[%clk 0:02:51.9]} 10... Nxe5 {[%clk 0:02:55.5]}
11. dxe5 {[%clk 0:02:52.6]} 11... Ne7 {[%clk 0:02:56.2]} 12. Qc2 {[%clk
0:02:34]} 12... Bg4 {[%clk 0:02:22]} 13. Be2 {[%clk 0:02:17.1]} 13... Bxe2
{[%clk 0:02:19.9]} 14. Qxe2 {[%clk 0:02:18]} 14... O-O {[%clk 0:02:13.7]} 15.
O-O {[%clk 0:02:16.9]} 15... Nc6 {[%clk 0:01:55.7]} 16. Rad1 {[%clk 0:02:09.3]}
16... Qxa2 {[%clk 0:01:55.3]} 17. Qxe4 {[%clk 0:02:05.4]} 17... Rfd8 {[%clk
0:01:47.7]} 18. f4 {[%clk 0:01:55.1]} 18... Qb3 {[%clk 0:01:39.1]} 19. Rde1
{[%clk 0:01:50.8]} 19... Qd5 {[%clk 0:01:36.7]} 20. e6 {[%clk 0:01:36.8]} 20...
fxe6 {[%clk 0:01:31.1]} 21. Qxe6+ {[%clk 0:01:32.7]} 21... Qxe6 {[%clk
0:01:30.9]} 22. Rxe6 {[%clk 0:01:33.6]} 22... Kf7 {[%clk 0:01:23.1]} 23. f5
{[%clk 0:01:30.5]} 23... Rd5 {[%clk 0:01:19.1]} 24. g4 {[%clk 0:01:24.1]} 24...
a5 {[%clk 0:01:09.3]} 25. Rfe1 {[%clk 0:01:16.9]} 25... a4 {[%clk 0:01:03.6]}
26. Ra1 {[%clk 0:01:09.8]} 26... Ra6 {[%clk 0:00:54.3]} 27. Kf2 {[%clk 0:01:03]}
27... b5 {[%clk 0:00:49.8]} 28. Re4 {[%clk 0:00:50.2]} 28... Rb6 {[%clk
0:00:41.8]} 29. h4 {[%clk 0:00:39.7]} 29... b4 {[%clk 0:00:28]} 30. Be1 {[%clk
0:00:35.8]} 30... a3 {[%clk 0:00:16.1]} 31. bxa3 {[%clk 0:00:35.3]} 31... b3
{[%clk 0:00:16.4]} 32. Rb1 {[%clk 0:00:34.5]} 32... Nd4 {[%clk 0:00:13.4]} 33.
Bc3 {[%clk 0:00:30.9]} 33... Nc2 {[%clk 0:00:11.5]} 34. Bb2 {[%clk 0:00:27.5]}
34... Rd3 {[%clk 0:00:10.6]} 35. a4 {[%clk 0:00:21.5]} 35... Rh3 {[%clk
0:00:10]} 36. h5 {[%clk 0:00:19.5]} 36... Rd6 {[%clk 0:00:10]} 37. Kg2 {[%clk
0:00:11.5]} 37... Rhd3 {[%clk 0:00:09.7]} 38. a5 {[%clk 0:00:07.1]} 38... Rd2+
{[%clk 0:00:09.4]} 39. Kg3 {[%clk 0:00:03.9]} 39... R6d3+ {[%clk 0:00:09.6]} 40.
Kf4 {[%clk 0:00:03.9]} 40... Rd5 {[%clk 0:00:09.8]} 41. a6 {[%clk 0:00:03.3]}
41... Ra5 {[%clk 0:00:09.5]} 42. Bc3 {[%clk 0:00:01.6]} 42... Rf2+ {[%clk
0:00:06.2]} 43. Kg3 {[%clk 0:00:01.9]} 43... Rxa6 {[%clk 0:00:05.6]} 44. Ba5
{[%clk 0:00:02.7]} 44... Rxa5 {[%clk 0:00:05.2]} 45. Kxf2 {[%clk 0:00:03.4]}
45... Ra2 {[%clk 0:00:04.2]} 46. Kg3 {[%clk 0:00:03.9]} 46... b2 {[%clk
0:00:03.9]} 47. Re2 {[%clk 0:00:03.2]} 47... Na3 {[%clk 0:00:02.5]} 48. Rexb2
{[%clk 0:00:04.1]} 48... Nxb1 {[%clk 0:00:02.1]} 49. Rxb1 {[%clk 0:00:04.7]}
49... Rc2 {[%clk 0:00:01.9]} 50. Rb7+ {[%clk 0:00:05.3]} 50... Kf8 {[%clk
0:00:02.4]} 51. Rb6 {[%clk 0:00:06]} 51... Kf7 {[%clk 0:00:03.3]} 52. Kf4 {[%clk
0:00:06.3]} 52... Rc3 {[%clk 0:00:04.2]} 53. Rb7+ {[%clk 0:00:06.2]} 53... Kf8
{[%clk 0:00:04.3]} 54. g5 {[%clk 0:00:06.6]} 54... Rc4+ {[%clk 0:00:04.8]} 55.
Ke5 {[%clk 0:00:06.9]} 55... Rc5+ {[%clk 0:00:05.3]} 56. Ke6 {[%clk 0:00:07.2]}
56... Rc8 {[%clk 0:00:05.9]} 57. f6 {[%clk 0:00:07.3]} 57... Re8+ {[%clk
0:00:06.5]} 58. Kf5 {[%clk 0:00:07.4]} 58... gxf6 {[%clk 0:00:06.8]} 59. Kxf6
{[%clk 0:00:07.9]} 59... Kg8 {[%clk 0:00:07.3]} 60. Rf7 {[%clk 0:00:08.1]} 60...
Rb8 {[%clk 0:00:07.4]} 61. Rg7+ {[%clk 0:00:08.5]} 61... Kh8 {[%clk 0:00:07.6]}
62. Rd7 {[%clk 0:00:08.7]} 62... Rb6+ {[%clk 0:00:07.9]} 63. Ke7 {[%clk
0:00:08.9]} 63... Rb8 {[%clk 0:00:08.3]} 64. Rd8+ {[%clk 0:00:08.7]} 64... Rxd8
{[%clk 0:00:08.4]} 65. Kxd8 {[%clk 0:00:09.6]} 65... Kg7 {[%clk 0:00:09.2]} 66.
Ke7 {[%clk 0:00:10.1]} 66... h6 {[%clk 0:00:09.8]} 67. g6 {[%clk 0:00:09.4]}
67... Kg8 {[%clk 0:00:10.2]} 68. Ke6 {[%clk 0:00:09.6]} 68... Kg7 {[%clk
0:00:11.1]} 69. Kf5 {[%clk 0:00:10.1]} 69... Kg8 {[%clk 0:00:11.8]} 70. Kf6
{[%clk 0:00:10.8]} 70... Kh8 {[%clk 0:00:12.1]} 71. g7+ {[%clk 0:00:10]} 71...
Kh7 {[%clk 0:00:12.7]} 72. g8=Q+ {[%clk 0:00:08.9]} 72... Kxg8 {[%clk
0:00:13.2]} 73. Kg6 {[%clk 0:00:09.8]} 73... Kh8 {[%clk 0:00:13.5]} 74. Kxh6
{[%clk 0:00:10.7]} 74... Kg8 {[%clk 0:00:14.4]} 75. Kg6 {[%clk 0:00:11.3]} 75...
Kh8 {[%clk 0:00:15.3]} 76. h6 {[%clk 0:00:12]} 76... Kg8 {[%clk 0:00:16.2]} 77.
h7+ {[%clk 0:00:12.9]} 77... Kh8 {[%clk 0:00:17.1]} 78. Kh6 {[%clk 0:00:13.4]}
1/2-1/2

[Event "Late-Titled-Tuesday-Blitz-October-17-2023"]
[Site "Chess.com"]
[Date "2023.10.17"]
[Round "2"]
[White "GMKrikor"]
[Black "GlavkonVVS"]
[Result "1/2-1/2"]
[WhiteElo "2833"]
[BlackElo "2535"]
[TimeControl "180+1"]
[EndTime "14:19:04 PDT"]
[Termination "Game drawn by repetition"]

1. Nf3 {[%clk 0:03:00.9]} 1... Nf6 {[%clk 0:03:00.2]} 2. c4 {[%clk 0:03:00.8]}
2... c5 {[%clk 0:03:00.8]} 3. Nc3 {[%clk 0:03:00.6]} 3... Nc6 {[%clk 0:03:01.3]}
4. d4 {[%clk 0:03:00.3]} 4... g6 {[%clk 0:03:01.4]} 5. d5 {[%clk 0:02:52.7]}
5... Na5 {[%clk 0:03:01.5]} 6. e4 {[%clk 0:02:53]} 6... d6 {[%clk 0:03:01.6]} 7.
a3 {[%clk 0:02:50.1]} 7... Bg7 {[%clk 0:02:58.3]} 8. b4 {[%clk 0:02:04.8]} 8...
Nxe4 {[%clk 0:02:55.2]} 9. Nxe4 {[%clk 0:02:03.5]} 9... Bxa1 {[%clk 0:02:54.1]}
10. bxa5 {[%clk 0:02:03.8]} 10... Qxa5+ {[%clk 0:02:52.4]} 11. Nfd2 {[%clk
0:01:56.7]} 11... Bf5 {[%clk 0:02:38.7]} 12. Bd3 {[%clk 0:01:55.5]} 12... Bxe4
{[%clk 0:02:26.5]} 13. Bxe4 {[%clk 0:01:55]} 13... O-O {[%clk 0:02:18.5]} 14.
O-O {[%clk 0:01:50.8]} 14... Bg7 {[%clk 0:02:18]} 15. Qc2 {[%clk 0:01:46.7]}
15... a6 {[%clk 0:02:17.3]} 16. Bd3 {[%clk 0:01:40.2]} 16... b5 {[%clk 0:02:15]}
17. g3 {[%clk 0:01:40.6]} 17... Rab8 {[%clk 0:02:10.2]} 18. Kg2 {[%clk
0:01:39.7]} 18... b4 {[%clk 0:01:56.4]} 19. a4 {[%clk 0:01:37.7]} 19... b3
{[%clk 0:01:52.2]} 20. Nxb3 {[%clk 0:01:37.2]} 20... Qxa4 {[%clk 0:01:52.3]} 21.
Nd4 {[%clk 0:01:28]} 21... Qxc2 {[%clk 0:01:41.8]} 22. Nxc2 {[%clk 0:01:28]}
22... Rb3 {[%clk 0:01:40.2]} 23. Rd1 {[%clk 0:01:27.6]} 23... Rfb8 {[%clk
0:01:26]} 24. Kf3 {[%clk 0:01:15.3]} 24... Rc3 {[%clk 0:01:16.4]} 25. Ke2 {[%clk
0:01:09.4]} 25... Rb1 {[%clk 0:01:11]} 26. Bd2 {[%clk 0:00:43.6]} 26... Rxd1
{[%clk 0:00:59.9]} 27. Bxc3 {[%clk 0:00:43.2]} 27... Rh1 {[%clk 0:00:56.8]} 28.
Ba5 {[%clk 0:00:29.1]} 28... Rxh2 {[%clk 0:00:50.1]} 29. Ne3 {[%clk 0:00:19]}
29... h5 {[%clk 0:00:43.5]} 30. Bc2 {[%clk 0:00:14.7]} 30... Bd4 {[%clk
0:00:39.7]} 31. Ba4 {[%clk 0:00:12.4]} 31... h4 {[%clk 0:00:29.9]} 32. gxh4
{[%clk 0:00:11.5]} 32... Rxh4 {[%clk 0:00:29.5]} 33. Nc2 {[%clk 0:00:05.5]}
33... Be5 {[%clk 0:00:27.3]} 34. Kd3 {[%clk 0:00:03.1]} 34... f5 {[%clk
0:00:19.8]} 35. Bd7 {[%clk 0:00:01.9]} 35... Rh3+ {[%clk 0:00:19]} 36. Ke2
{[%clk 0:00:01.1]} 36... Kg7 {[%clk 0:00:18.7]} 37. Bd2 {[%clk 0:00:01.5]} 37...
Bf6 {[%clk 0:00:18.3]} 38. Bc8 {[%clk 0:00:01.9]} 38... Rh4 {[%clk 0:00:16.3]}
39. Bxa6 {[%clk 0:00:02.4]} 39... Re4+ {[%clk 0:00:15.5]} 40. Kd3 {[%clk
0:00:02.6]} 40... g5 {[%clk 0:00:15.2]} 41. Be3 {[%clk 0:00:02.9]} 41... Rh4
{[%clk 0:00:13.8]} 42. Bc8 {[%clk 0:00:03.7]} 42... Kg6 {[%clk 0:00:13.5]} 43.
f3 {[%clk 0:00:03.4]} 43... Rh3 {[%clk 0:00:12.5]} 44. Ke2 {[%clk 0:00:03.5]}
44... Rh2+ {[%clk 0:00:12.4]} 45. Kd3 {[%clk 0:00:04.2]} 45... Be5 {[%clk
0:00:12.3]} 46. Bd2 {[%clk 0:00:04.2]} 46... Kf6 {[%clk 0:00:11.7]} 47. Ne3
{[%clk 0:00:04.6]} 47... Bf4 {[%clk 0:00:08.5]} 48. Nxf5 {[%clk 0:00:04.2]}
48... Rxd2+ {[%clk 0:00:08.1]} 49. Ke4 {[%clk 0:00:04.6]} 49... Re2+ {[%clk
0:00:08.1]} 50. Kd3 {[%clk 0:00:05.1]} 50... Re5 {[%clk 0:00:08.5]} 51. Nh6
{[%clk 0:00:05.6]} 51... Re3+ {[%clk 0:00:08.7]} 52. Kc2 {[%clk 0:00:04.5]}
52... Rxf3 {[%clk 0:00:09.3]} 53. Ng4+ {[%clk 0:00:04.7]} 53... Kg7 {[%clk
0:00:09.7]} 54. Bf5 {[%clk 0:00:04.4]} 54... Rg3 {[%clk 0:00:09.6]} 55. Kd1
{[%clk 0:00:03.5]} 55... Be5 {[%clk 0:00:09.7]} 56. Ke2 {[%clk 0:00:03.3]} 56...
Rc3 {[%clk 0:00:09.8]} 57. Bd3 {[%clk 0:00:03.8]} 57... Rb3 {[%clk 0:00:09]} 58.
Nf2 {[%clk 0:00:04.5]} 58... Rb2+ {[%clk 0:00:08.9]} 59. Kf3 {[%clk 0:00:04.8]}
59... Bd4 {[%clk 0:00:09]} 60. Ne4 {[%clk 0:00:04.8]} 60... Kh6 {[%clk
0:00:09.4]} 61. Ng3 {[%clk 0:00:04.6]} 61... Rf2+ {[%clk 0:00:09]} 62. Kg4
{[%clk 0:00:03.1]} 62... Rf4+ {[%clk 0:00:09.2]} 63. Kh3 {[%clk 0:00:03.8]}
63... Bf6 {[%clk 0:00:07.9]} 64. Nf5+ {[%clk 0:00:03.5]} 64... Kh5 {[%clk
0:00:07.4]} 65. Ng3+ {[%clk 0:00:04.3]} 65... Kh6 {[%clk 0:00:06.3]} 66. Nf5+
{[%clk 0:00:05]} 66... Rxf5 {[%clk 0:00:04.4]} 67. Bxf5 {[%clk 0:00:05]} 67...
Kg7 {[%clk 0:00:05]} 68. Kg4 {[%clk 0:00:05.8]} 68... Kf8 {[%clk 0:00:04.8]} 69.
Be4 {[%clk 0:00:03.6]} 69... Kg7 {[%clk 0:00:05.7]} 70. Bf5 {[%clk 0:00:04]}
70... Kh6 {[%clk 0:00:06.1]} 71. Be6 {[%clk 0:00:04.3]} 71... Be5 {[%clk
0:00:06.5]} 72. Bf5 {[%clk 0:00:04.9]} 72... Bf6 {[%clk 0:00:07.2]} 73. Be6
{[%clk 0:00:05.2]} 73... Be5 {[%clk 0:00:07.8]} 74. Bf5 {[%clk 0:00:05.7]} 74...
Bf6 {[%clk 0:00:08.7]} 1/2-1/2

[Event "Late-Titled-Tuesday-Blitz-October-17-2023"]
[Site "Chess.com"]
[Date "2023.10.17"]
[Round "2"]
[White "cassoulet"]
[Black "Artyom_ChessMate"]
[Result "1-0"]
[WhiteElo "2772"]
[BlackElo "2507"]
[TimeControl "180+1"]
[EndTime "14:19:18 PDT"]
[Termination "cassoulet won by resignation"]

1. d4 {[%clk 0:03:00.9]} 1... d5 {[%clk 0:03:00.2]} 2. Nf3 {[%clk 0:03:00.5]}
2... Nf6 {[%clk 0:03:00.3]} 3. Bf4 {[%clk 0:03:01]} 3... c5 {[%clk 0:03:00.5]}
4. e3 {[%clk 0:03:00.4]} 4... Nc6 {[%clk 0:03:00.9]} 5. Nbd2 {[%clk 0:02:59.9]}
5... Nh5 {[%clk 0:03:01]} 6. Bg3 {[%clk 0:02:59.3]} 6... Nxg3 {[%clk 0:03:00.7]}
7. hxg3 {[%clk 0:03:00.2]} 7... cxd4 {[%clk 0:02:59.6]} 8. exd4 {[%clk
0:02:59.7]} 8... g6 {[%clk 0:03:00.3]} 9. c3 {[%clk 0:02:59.5]} 9... Bg7 {[%clk
0:03:00.9]} 10. Bd3 {[%clk 0:02:58.3]} 10... Bg4 {[%clk 0:03:00.7]} 11. Qb3
{[%clk 0:02:57.5]} 11... Qb6 {[%clk 0:03:00.1]} 12. O-O-O {[%clk 0:02:51.9]}
12... Qxb3 {[%clk 0:02:59.5]} 13. Nxb3 {[%clk 0:02:51.6]} 13... O-O-O {[%clk
0:02:56]} 14. Rde1 {[%clk 0:02:49.7]} 14... h5 {[%clk 0:02:50.6]} 15. Kb1 {[%clk
0:02:45.7]} 15... Bf6 {[%clk 0:02:47]} 16. Ne5 {[%clk 0:02:41.1]} 16... Bxe5
{[%clk 0:02:27]} 17. dxe5 {[%clk 0:02:42]} 17... d4 {[%clk 0:02:27.5]} 18. c4
{[%clk 0:02:35.4]} 18... Nb4 {[%clk 0:02:08.7]} 19. Be4 {[%clk 0:02:35.2]} 19...
e6 {[%clk 0:02:05.4]} 20. a3 {[%clk 0:02:29.5]} 20... Nc6 {[%clk 0:01:56.3]} 21.
Bxc6 {[%clk 0:02:28.8]} 21... bxc6 {[%clk 0:01:57.2]} 22. Kc2 {[%clk 0:02:28.7]}
22... Bf5+ {[%clk 0:01:54.4]} 23. Kd2 {[%clk 0:02:28.8]} 23... Kc7 {[%clk
0:01:54.8]} 24. Nc5 {[%clk 0:02:29]} 24... a5 {[%clk 0:01:49.4]} 25. f3 {[%clk
0:02:22.6]} 25... Ra8 {[%clk 0:01:45.6]} 26. b3 {[%clk 0:02:20.7]} 26... Kb6
{[%clk 0:01:39.6]} 27. Nd3 {[%clk 0:02:16.1]} 27... Bxd3 {[%clk 0:01:19.5]} 28.
Kxd3 {[%clk 0:02:17]} 28... c5 {[%clk 0:01:20.4]} 29. Rh4 {[%clk 0:02:15.7]}
29... Kc6 {[%clk 0:01:19.3]} 30. Rf4 {[%clk 0:02:15.4]} 30... Ra7 {[%clk
0:01:18.2]} 31. Rb1 {[%clk 0:02:10.5]} 31... Rb8 {[%clk 0:01:18.4]} 32. a4
{[%clk 0:02:00.5]} 32... Rab7 {[%clk 0:01:18]} 33. Kc2 {[%clk 0:02:00.6]} 33...
Rd8 {[%clk 0:01:17]} 34. Rd1 {[%clk 0:02:00.6]} 34... d3+ {[%clk 0:00:59.4]} 35.
Rxd3 {[%clk 0:01:48.1]} 35... Rxd3 {[%clk 0:01:00.3]} 36. Kxd3 {[%clk
0:01:48.4]} 36... Rxb3+ {[%clk 0:00:59.4]} 37. Kc2 {[%clk 0:01:47]} 37... Rb7
{[%clk 0:00:59.7]} 38. Kc3 {[%clk 0:01:44.6]} 38... Rd7 {[%clk 0:00:58.8]} 39.
g4 {[%clk 0:01:40]} 39... hxg4 {[%clk 0:00:52.2]} 40. Rxg4 {[%clk 0:01:40.9]}
40... Kc7 {[%clk 0:00:33.4]} 41. Rf4 {[%clk 0:01:40.9]} 41... Kd8 {[%clk
0:00:32.5]} 42. Rh4 {[%clk 0:01:39.5]} 42... Kc7 {[%clk 0:00:31.8]} 43. Rh7
{[%clk 0:01:39]} 43... Kb6 {[%clk 0:00:29.3]} 44. Rh8 {[%clk 0:01:36.2]} 44...
Rd1 {[%clk 0:00:26]} 45. Rf8 {[%clk 0:01:36.2]} 45... Rd7 {[%clk 0:00:23.6]} 46.
g3 {[%clk 0:01:33.3]} 46... Kc7 {[%clk 0:00:22]} 47. f4 {[%clk 0:01:31.7]} 47...
Kb6 {[%clk 0:00:20.9]} 48. Rb8+ {[%clk 0:01:31]} 48... Kc7 {[%clk 0:00:21.1]}
49. Rb5 {[%clk 0:01:31]} 49... Kc6 {[%clk 0:00:21.5]} 50. Rxa5 {[%clk
0:01:31.3]} 50... Kb6 {[%clk 0:00:19.3]} 51. Rb5+ {[%clk 0:01:31.2]} 51... Kc6
{[%clk 0:00:20]} 52. Rb8 {[%clk 0:01:28.3]} 52... Ra7 {[%clk 0:00:20]} 53. Kb3
{[%clk 0:01:25.3]} 53... Rd7 {[%clk 0:00:20.4]} 54. Kc3 {[%clk 0:01:19.1]} 54...
Ra7 {[%clk 0:00:20.2]} 55. Rc8+ {[%clk 0:01:18.9]} 55... Kb6 {[%clk 0:00:18.8]}
56. Rf8 {[%clk 0:01:15.2]} 56... Rxa4 {[%clk 0:00:18.5]} 57. Rxf7 {[%clk
0:01:15.4]} 57... Ra3+ {[%clk 0:00:19.2]} 58. Kd2 {[%clk 0:01:14.4]} 58... Rxg3
{[%clk 0:00:20.1]} 59. Rf6 {[%clk 0:01:14.6]} 59... Kc7 {[%clk 0:00:15.1]} 60.
Rxe6 {[%clk 0:01:14.5]} 60... Rg4 {[%clk 0:00:10.2]} 61. Ke3 {[%clk 0:01:13.6]}
61... Rg3+ {[%clk 0:00:09.8]} 62. Ke4 {[%clk 0:01:13.5]} 62... Rg4 {[%clk
0:00:09.8]} 63. Kd5 {[%clk 0:01:11.6]} 63... Rxf4 {[%clk 0:00:09.4]} 64. Rxg6
{[%clk 0:01:11.7]} 64... Rf5 {[%clk 0:00:09]} 65. Rc6+ {[%clk 0:01:09.6]} 65...
Kd7 {[%clk 0:00:08.4]} 66. Rxc5 {[%clk 0:01:10.5]} 66... Rf1 {[%clk 0:00:08.4]}
67. Ra5 {[%clk 0:01:08.8]} 67... Rd1+ {[%clk 0:00:08.8]} 68. Ke4 {[%clk
0:01:07.8]} 68... Ke6 {[%clk 0:00:09.7]} 69. Ra6+ {[%clk 0:01:07.5]} 69... Ke7
{[%clk 0:00:10.3]} 70. Rh6 {[%clk 0:01:06.7]} 70... Rd2 {[%clk 0:00:09.8]} 71.
c5 {[%clk 0:01:06.2]} 71... Rd1 {[%clk 0:00:09.8]} 72. Rd6 {[%clk 0:01:04.2]}
72... Rc1 {[%clk 0:00:09.7]} 73. Kd5 {[%clk 0:01:02.7]} 73... Re1 {[%clk
0:00:09.1]} 74. e6 {[%clk 0:01:02.3]} 74... Ra1 {[%clk 0:00:05.3]} 75. Rb6
{[%clk 0:01:00.7]} 75... Rd1+ {[%clk 0:00:04.1]} 76. Ke5 {[%clk 0:00:59.5]}
76... Re1+ {[%clk 0:00:04.2]} 77. Kd5 {[%clk 0:00:59.3]} 77... Rd1+ {[%clk
0:00:04.7]} 78. Kc4 {[%clk 0:00:59.5]} 78... Rc1+ {[%clk 0:00:04.7]} 79. Kb5
{[%clk 0:00:59.5]} 79... Rb1+ {[%clk 0:00:05]} 80. Kc6 {[%clk 0:00:59.8]} 80...
Rc1 {[%clk 0:00:05.2]} 81. Rb2 {[%clk 0:00:53.3]} 81... Kxe6 {[%clk 0:00:04.6]}
82. Re2+ {[%clk 0:00:53.9]} 82... Kf7 {[%clk 0:00:05.3]} 83. Kd6 {[%clk
0:00:53.4]} 83... Rd1+ {[%clk 0:00:05.6]} 84. Kc7 {[%clk 0:00:53.7]} 84... Rc1
{[%clk 0:00:06.5]} 85. c6 {[%clk 0:00:54.1]} 85... Rc3 {[%clk 0:00:04.9]} 86.
Kd7 {[%clk 0:00:54.2]} 86... Rd3+ {[%clk 0:00:03.6]} 87. Kc8 {[%clk 0:00:54.5]}
87... Rd1 {[%clk 0:00:04.5]} 88. c7 {[%clk 0:00:54.4]} 88... Rc1 {[%clk
0:00:05.2]} 89. Re4 {[%clk 0:00:52.3]} 89... Kf6 {[%clk 0:00:05.4]} 90. Kb7
{[%clk 0:00:51.7]} 90... Rb1+ {[%clk 0:00:05.7]} 91. Kc6 {[%clk 0:00:52]} 91...
Rc1+ {[%clk 0:00:06.2]} 92. Kb6 {[%clk 0:00:52.1]} 92... Kf7 {[%clk 0:00:04.6]}
93. Re5 {[%clk 0:00:49.7]} 1-0